bitfinex-derivatives/quotes_ETHF0:USTF0_20250831
["timestamp","ask_amount","ask_price","bid_price","bid_amount"]
[1756655649140,0.4938,4487.5,4487.4,0.1821]
[1756655649141,0.7228,4487.5,4487.4,0.1821]
[1756655649338,0.4277,4487.5,4486.7,0.2822]
[1756655649539,1.86069584,4487.1,4487.0,0.4643]
[1756655649838,2.08969584,4487.1,4487.0,0.4643]
[1756655650236,0.7228,4487.1,4487.0,0.4643]
[1756655651540,2.08969584,4487.1,4487.0,0.4643]
[1756655652135,1.79459584,4487.1,4486.7,0.2822]
[1756655652342,1.86069584,4486.8,4486.7,0.2822]
[1756655652540,0.1987,4486.2,4486.1,0.4643]
[1756655652746,0.4938,4486.2,4486.1,0.4643]
[1756655653542,0.2951,4486.4,4486.1,0.1821]
[1756655653736,0.2951,4486.4,4486.3,0.1821]
[1756655653936,0.2951,4486.4,4486.3,0.4643]
[1756655654339,1.36689584,4487.1,4486.6,0.1821]
[1756655654539,1.86069584,4487.1,4487.0,0.4643]
[1756655654743,2.08969584,4487.1,4485.8,1.36689584]
[1756655654937,1.36689584,4486.7,4485.9,0.2822]
[1756655655136,0.4938,4486.5,4486.4,0.1821]
[1756655655340,0.4938,4486.5,4486.4,0.4643]
[1756655655545,0.4277,4486.5,4486.4,0.4643]
[1756655656045,0.229,4486.5,4486.4,0.4643]
[1756655656549,0.4277,4486.5,4486.4,0.4643]
[1756655656748,0.7228,4486.5,4486.4,0.4643]
[1756655657451,0.229,4486.5,4486.4,0.4643]
[1756655658242,0.7228,4486.5,4486.4,0.4643]
[1756655662652,0.4938,4486.5,4486.4,0.4643]
[1756655662953,0.7228,4486.5,4486.4,0.4643]
[1756655666542,0.4938,4486.5,4486.4,0.4643]
[1756655666840,0.7228,4486.5,4486.4,0.4643]
[1756655671156,0.7228,4486.5,4486.1,0.2822]
[1756655671357,0.4938,4486.2,4486.1,0.1821]
[1756655671558,0.4938,4486.2,4486.1,0.4643]
[1756655671759,0.4938,4486.2,4485.5,3.2078]
[1756655671950,0.4938,4485.7,4485.6,0.4643]
[1756655672859,0.4277,4485.7,4485.6,0.4643]
[1756655673649,3.5029,4486.1,4485.6,0.1821]
[1756655673853,3.7016,4486.1,4486.0,0.4643]
[1756655674054,3.9306,4486.1,4486.0,0.4643]
[1756655674458,3.7016,4486.1,4486.0,0.4643]
[1756655674661,0.4938,4485.6,4485.5,3.3899]
[1756655674960,0.7228,4485.6,4485.5,3.3899]
[1756655675165,0.4938,4485.6,4485.5,3.6721]
[1756655675355,0.7228,4485.6,4485.5,3.6721]
[1756655678357,0.7228,4485.6,4485.5,0.4643]
[1756655681362,2.08969584,4485.6,4485.5,0.4643]
[1756655681558,0.2733,4485.5,4484.8,0.2928]
[1756655681865,0.4739,4484.9,4484.8,0.4766]
[1756655683655,0.2733,4485.5,4484.8,0.1838]
[1756655683860,0.7029,4485.4,4485.3,0.1838]
[1756655684255,0.7029,4485.4,4485.1,0.2928]
[1756655684256,0.4739,4485.4,4485.1,0.2928]
[1756655684461,0.4739,4485.2,4485.1,0.4766]
[1756655685567,0.4739,4485.2,4485.1,0.2928]
[1756655685763,0.4739,4485.2,4485.1,0.4766]
[1756655685962,0.7029,4485.2,4485.1,0.4766]
[1756655694068,0.2733,4485.1,4484.8,0.2928]
[1756655694269,0.2006,4484.9,4484.8,0.4766]
[1756655694572,0.4739,4484.9,4484.8,0.4766]
[1756655695472,0.2733,4485.5,4484.9,0.2928]
[1756655695775,0.4739,4485.5,4485.4,0.4766]
[1756655695977,0.7029,4485.5,4485.4,0.4766]
[1756655696978,0.88428286,4485.5,4485.4,0.4766]
[1756655698580,0.65528286,4485.5,4485.4,0.4766]
[1756655698773,0.88428286,4485.5,4485.4,0.4766]
[1756655699872,0.65528286,4485.5,4485.4,0.4766]
[1756655700077,0.88428286,4485.5,4485.4,0.4766]
[1756655700272,1.20293575,4485.5,4485.4,0.4766]
[1756655700474,0.41038286,4485.5,4485.4,0.4766]
[1756655701168,0.68368286,4485.5,4485.4,0.4766]
[1756655701368,0.41038286,4485.5,4485.4,0.4766]
[1756655701770,0.18138286,4485.5,4485.4,0.4766]
[1756655702174,0.41038286,4485.5,4485.4,0.4766]
[1756655702377,0.88428286,4485.5,4485.4,0.4766]
[1756655703879,0.88454105,4485.5,4485.4,0.4766]
[1756655704087,0.41064105,4485.5,4485.4,0.4766]
[1756655704688,0.41064468,4485.5,4485.4,0.4766]
[1756655705378,0.41064468,4485.5,4485.4,3.6844]
[1756655705984,0.18164468,4485.5,4485.4,3.6844]
[1756655707485,0.1815319,4485.5,4485.4,3.6844]
[1756655708390,0.1815319,4485.5,4485.4,5.05129584]
[1756655712095,0.1815319,4485.5,4485.4,3.6844]
[1756655712403,0.1815319,4485.5,4485.4,5.05129584]
[1756655714399,0.2765,4486.2,4485.4,4.75849584]
[1756655714590,0.18135475,4486.1,4485.5,0.2903]
[1756655714897,0.45785475,4486.0,4485.9,0.4923]
[1756655715392,0.45784141,4486.0,4485.9,0.4923]
[1756655715891,0.18134141,4486.0,4485.9,0.4923]
[1756655716597,0.65404141,4486.0,4485.9,0.4923]
[1756655717187,0.18134141,4486.0,4485.9,0.4923]
[1756655717390,0.65404141,4486.0,4485.9,0.4923]
[1756655722501,0.37754141,4486.0,4485.9,0.4923]
[1756655722698,0.18134141,4486.0,4485.9,0.4923]
[1756655725205,0.228,4486.5,4485.9,0.202]
[1756655725501,0.1962,4486.3,4486.2,0.202]
[1756655725699,0.65403856,4486.3,4486.2,0.4923]
[1756655727001,0.1962,4486.3,4486.2,0.4923]
[1756655727598,0.228,4486.8,4486.2,0.202]
[1756655727806,0.4727,4486.7,4486.6,3.4098]
[1756655728300,0.4727,4486.7,4486.6,3.7001]
[1756655730307,0.228,4486.8,4486.6,3.4098]
[1756655730511,0.5045,4486.8,4486.7,0.4923]
[1756655730703,0.7007,4486.8,4486.7,0.4923]
[1756655731711,0.4727,4486.8,4486.7,0.4923]
[1756655731905,0.2765,4487.2,4486.7,0.202]
[1756655732107,0.4242,4487.1,4486.8,0.2903]
[1756655732408,0.7007,4487.1,4487.0,0.4923]
[1756655732903,0.4727,4487.1,4487.0,0.4923]
[1756655737412,0.7007,4487.1,4487.0,0.4923]
[1756655738814,0.4727,4487.1,4487.0,0.4923]
[1756655739114,0.7007,4487.1,4487.0,0.4923]
[1756655754021,1.83914047,4487.1,4487.0,0.4923]
[1756655754221,1.61114047,4487.1,4487.0,0.4923]
[1756655754519,1.83914047,4487.1,4487.0,0.4923]
[1756655755117,1.61114047,4487.1,4487.0,0.4923]
[1756655755319,1.83914047,4487.1,4487.0,0.4923]
[1756655755929,1.61114047,4487.1,4487.0,0.4923]
[1756655756231,1.83914047,4487.1,4487.0,0.4923]
[1756655765432,1.61114047,4487.1,4487.0,0.4923]
[1756655765634,1.83914047,4487.1,4487.0,0.4923]
[1756655770338,0.1885,4486.8,4486.7,0.2763]
[1756655770540,1.61134047,4486.8,4486.7,0.2763]
[1756655770839,1.61134047,4486.8,4486.7,0.4694]
[1756655773740,1.61134047,4486.8,4486.6,3.2078]
[1756655773935,1.61134047,4486.8,4486.1,1.99397534]
[1756655773936,0.4729,4486.2,4486.1,3.2078]
[1756655774242,1.61134047,4486.2,4486.1,3.2078]
[1756655774439,1.61134047,4486.2,4486.1,3.6772]
[1756655775041,0.4729,4486.2,4486.1,3.6772]
[1756655785055,3.2078,4487.1,4486.1,5.03855047]
[1756655785353,0.228,4487.0,4486.9,0.4694]
[1756655786057,3.2078,4488.7,4487.9,0.1931]
[1756655786253,0.2844,4488.5,4488.3,0.2763]
[1756655786458,1.61134047,4488.5,4488.4,0.4694]
[1756655787556,1.83934047,4488.5,4488.4,0.4694]
[1756655789958,2.06635143,4488.5,4488.4,0.4694]
[1756655790158,0.1885,4488.4,4487.7,3.4841]
[1756655790357,0.4729,4487.8,4487.7,3.6772]
[1756655791458,3.2078,4488.9,4487.8,0.2763]
[1756655791661,0.2844,4488.6,4488.2,0.2763]
[1756655791862,0.4729,4488.6,4488.5,0.4694]
[1756655793057,0.228,4488.6,4488.5,0.4694]
[1756655793658,0.7009,4488.6,4488.5,0.4694]
[1756655794652,0.4729,4488.6,4488.5,0.4694]
[1756655802573,0.289,4489.8,4489.3,0.1979]
[1756655802770,0.4774,4490.1,4490.0,0.4961]
[1756655803272,0.7044,4490.1,4490.0,0.4961]
[1756655803765,0.4774,4490.1,4490.0,0.4961]
[1756655804576,0.1884,4490.1,4490.0,0.4961]
[1756655805369,1.227,4490.2,4490.1,0.2982]
[1756655805572,1.227,4490.2,4490.1,0.4961]
[1756655805968,1.7044,4490.2,4490.1,0.4961]
[1756655806273,1.7044,4490.2,4490.1,3.7039]
[1756655807670,1.0,4490.2,4490.1,3.7039]
[1756655808978,1.4774,4490.2,4490.1,0.4961]
[1756655809167,0.4774,4489.8,4489.6,3.2078]
[1756655809370,2.06985143,4489.7,4489.6,3.2078]
[1756655810376,2.06985143,4489.7,4489.6,3.7039]
[1756655814378,1.36545143,4490.0,4489.6,3.7039]
[1756655814678,0.227,4489.7,4489.6,3.4057]
[1756655815078,0.227,4489.7,4489.6,3.7039]
[1756655815480,1.36545143,4490.1,4489.6,3.4057]
[1756655815676,1.55385143,4490.1,4490.0,0.2982]
[1756655815874,2.06985143,4490.1,4490.0,0.4961]
[1756655816876,1.0,4490.2,4490.1,0.2982]
[1756655817181,1.0,4490.2,4490.1,3.7039]
[1756655820480,2.36545143,4490.2,4490.1,3.7039]
[1756655820678,3.06985143,4490.2,4490.1,3.2078]
[1756655823278,3.06985143,4490.2,4489.7,0.2982]
[1756655823480,1.55385143,4489.8,4489.4,3.2078]
[1756655823790,1.55385143,4489.8,4489.6,0.4961]
[1756655823791,0.7044,4489.7,4489.6,0.4961]
[1756655825378,2.06985143,4489.7,4489.6,0.4961]
[1756655827590,2.06985143,4489.7,4489.4,3.2078]
[1756655827882,0.4774,4489.5,4489.4,3.2078]
[1756655828486,0.4774,4489.5,4489.4,3.6839]
[1756655830185,0.7044,4489.5,4489.4,3.6839]
[1756655830886,0.7044,4489.5,4488.5,0.227]
[1756655830887,0.2976,4489.4,4488.9,0.2772]
[1756655831091,1.84885143,4489.0,4488.9,0.4761]
[1756655832189,0.4834,4488.9,4488.8,3.2078]
[1756655833291,4.7104,4488.9,4488.2,0.2772]
[1756655833495,1.84885143,4488.3,4488.2,0.2772]
[1756655833696,2.07585143,4488.3,4488.2,0.2772]
[1756655834089,2.07585143,4488.3,4488.2,0.4761]
[1756655835990,2.07585143,4488.3,4488.1,3.2078]
[1756655836191,0.4834,4488.2,4488.1,3.2078]
[1756655836396,0.4834,4488.2,4488.1,3.485]
[1756655836696,0.4834,4488.2,4488.1,3.6839]
[1756655837699,0.4834,4488.2,4488.1,0.4761]
[1756655837899,0.1858,4487.8,4487.7,0.4761]
[1756655838099,0.4834,4487.8,4487.7,0.4761]
[1756655838294,0.1858,4487.8,4487.7,0.4761]
[1756655838495,0.2976,4488.2,4487.7,0.1989]
[1756655838700,0.4834,4488.2,4488.1,0.4761]
[1756655839908,0.7104,4488.2,4488.1,0.4761]
[1756655843610,3.3936,4489.1,4489.0,0.4761]
[1756655843808,3.2078,4489.1,4489.0,0.4761]
[1756655844014,3.4348,4489.1,4489.0,0.4761]
[1756655844313,0.227,4489.1,4489.0,0.4761]
[1756655844711,3.3936,4489.8,4489.7,0.4761]
[1756655844907,3.9182,4489.8,4489.7,0.4761]
[1756655845609,3.9182,4489.8,4489.3,0.2772]
[1756655845803,1.84885143,4489.4,4489.3,0.2772]
[1756655846003,2.07585143,4489.4,4489.3,0.4761]
[1756655846813,0.4834,4489.1,4489.0,0.2772]
[1756655847013,1.84885143,4489.1,4489.0,0.4761]
[1756655848216,0.4128,4489.1,4489.0,0.4761]
[1756655848418,0.227,4489.1,4489.0,0.4761]
[1756655848714,0.7104,4489.1,4489.0,0.4761]
[1756655850414,2.07585143,4489.1,4489.0,0.4761]
[1756655851911,0.7104,4489.1,4489.0,0.4761]
[1756655852519,2.07585143,4489.1,4489.0,0.4761]
[1756655856623,1.84885143,4489.1,4489.0,0.4761]
[1756655856824,2.07585143,4489.1,4489.0,0.4761]
[1756655857027,0.7104,4489.1,4489.0,0.4761]
[1756655857215,0.4834,4489.7,4489.6,0.1989]
[1756655857421,2.07585143,4489.7,4489.6,0.4761]
[1756655860534,1.84885143,4489.7,4489.6,0.4761]
[1756655860830,2.07585143,4489.7,4489.6,0.4761]
[1756655867730,0.4128,4489.7,4489.6,0.4761]
[1756655868033,0.7048,4489.7,4489.6,0.4761]
[1756655868224,2.07025143,4489.7,4489.6,0.4761]
[1756655875338,0.4778,4489.7,4489.6,0.4761]
[1756655875536,2.07025143,4489.7,4489.6,0.4761]
[1756655876436,0.4833,4489.6,4489.5,0.2994]
[1756655876638,0.4833,4489.6,4489.5,0.4888]
[1756655876826,0.7103,4489.6,4489.5,0.4888]
[1756655877636,0.519,4489.6,4489.5,0.4888]
[1756655878137,0.292,4489.8,4489.5,0.1894]
[1756655878437,1.55675143,4489.9,4489.8,0.1894]
[1756655878632,2.3314047,4489.9,4489.8,0.4888]
[1756655878837,2.6234047,4489.9,4489.8,0.4888]
[1756655879833,1.03095327,4489.9,4489.8,0.4888]
[1756655880139,2.6234047,4489.9,4489.8,0.4888]
[1756655880739,0.4833,4489.9,4489.8,0.4888]
[1756655881037,0.7103,4489.9,4489.8,0.4888]
[1756655886838,0.1913,4489.5,4489.4,3.3972]
[1756655887038,0.4833,4489.5,4489.4,3.3972]
[1756655887438,0.4833,4489.5,4489.4,3.6966]
[1756655888544,0.2941,4489.4,4488.9,0.5189]
[1756655888738,0.4836,4488.9,4488.8,3.2078]
[1756655888936,0.7106,4488.9,4488.8,3.2078]
[1756655890632,0.4836,4488.3,4488.2,3.2078]
[1756655890837,1.84905143,4488.3,4488.2,3.2078]
[1756655891942,1.84905143,4488.3,4488.1,0.2919]
[1756655892146,1.55495143,4488.3,4487.7,3.2078]
[1756655892444,0.227,4488.4,4487.7,3.2078]
[1756655892445,0.4836,4487.8,4487.7,3.2078]
[1756655892645,0.7106,4487.8,4487.7,3.2078]
[1756655893647,0.7106,4487.8,4487.2,0.2919]
[1756655893648,0.4165,4487.8,4487.0,3.2078]
[1756655893842,1.55495143,4487.1,4487.0,3.2078]
[1756655894043,2.07605143,4487.1,4487.0,3.4997]
[1756655894340,2.07605143,4487.1,4487.0,3.2078]
[1756655894939,2.07605143,4487.1,4487.0,3.6868]
[1756655895353,2.07605143,4487.1,4487.0,3.2078]
[1756655895542,0.4836,4486.6,4486.5,3.3949]
[1756655896146,0.4836,4486.6,4486.5,3.6868]
[1756655900153,0.4836,4486.6,4486.5,0.479]
[1756655900355,0.7106,4486.6,4486.5,0.479]
[1756655900846,0.2941,4487.0,4486.5,0.1871]
[1756655901046,0.227,4486.9,4486.6,0.2919]
[1756655901246,0.4165,4486.9,4486.8,0.479]
[1756655901454,0.7106,4486.9,4486.8,0.479]
[1756655901655,2.07605143,4486.9,4486.8,0.479]
[1756655902655,2.07605143,4486.9,4486.0,3.2078]
[1756655902864,1.55495143,4486.6,4486.5,0.479]
[1756655903359,1.84905143,4486.6,4486.5,0.479]
[1756655905560,0.5211,4486.9,4486.6,0.2919]
[1756655905760,0.227,4486.9,4486.8,0.479]
[1756655906362,0.7106,4486.9,4486.8,0.479]
[1756655906665,0.1895,4486.9,4486.8,0.479]
[1756655906854,0.227,4486.9,4486.8,0.479]
[1756655907058,3.2078,4487.3,4487.1,0.1871]
[1756655907258,3.2078,4487.3,4487.2,0.479]
[1756655907455,3.4348,4487.3,4487.2,0.479]
[1756655907860,3.2078,4487.3,4487.2,0.479]
[1756655908064,3.4348,4487.3,4487.2,0.479]
[1756655908768,3.2078,4487.3,4487.2,0.479]
[1756655908967,3.4348,4487.3,4487.2,0.479]
[1756655909670,3.2078,4487.3,4487.2,0.479]
[1756655909869,3.9184,4487.3,4487.2,0.479]
[1756655910466,3.6243,4487.3,4487.2,0.479]
[1756655911070,3.9184,4487.3,4487.2,0.479]
[1756655911870,3.4348,4487.3,4487.2,0.479]
[1756655913374,3.2078,4487.3,4487.2,0.479]
[1756655913577,3.9184,4487.3,4487.2,0.479]
[1756655915775,3.6914,4487.3,4487.2,0.479]
[1756655915975,3.9184,4487.3,4487.2,0.479]
[1756655917080,3.6914,4487.3,4487.2,0.479]
[1756655917278,3.9184,4487.3,4487.2,0.479]
[1756655920984,3.9184,4487.3,4486.4,0.3012]
[1756655921185,3.9184,4487.3,4486.5,0.22286999]
[1756655921485,3.9184,4487.3,4486.6,0.3012]
[1756655922585,3.9184,4487.3,4486.6,0.4977]
[1756655922586,0.4836,4486.7,4486.6,0.4977]
[1756655933198,0.194,4486.1,4486.0,3.4043]
[1756655933499,0.4836,4486.1,4486.0,3.4043]
[1756655933796,0.4836,4486.1,4486.0,3.7055]
[1756655935287,0.3384,4486.9,4486.0,3.7055]
[1756655935494,0.4836,4486.8,4486.7,0.1965]
[1756655935997,0.4836,4486.8,4486.7,0.4977]
[1756655944999,0.3384,4486.9,4486.0,3.2078]
[1756655945000,0.1114,4486.9,4486.8,0.4977]
[1756655945401,0.401,4486.9,4486.8,0.4977]
[1756655945603,0.595,4486.9,4486.8,0.4977]
[1756655949004,0.4836,4486.9,4486.8,0.4977]
[1756655949598,0.2825,4487.2,4486.9,0.2742]
[1756655949802,0.2825,4487.2,4487.1,0.1868]
[1756655950008,0.5869,4487.2,4487.1,0.461]
[1756655954010,0.2825,4487.1,4486.1,0.2742]
[1756655954311,1.84095143,4486.8,4486.7,0.461]
[1756655954511,0.4755,4486.8,4486.7,0.461]
[1756655956011,0.2825,4486.7,4486.1,0.2742]
[1756655956506,0.4755,4486.7,4486.6,0.461]
[1756655961120,0.4755,4486.7,4486.6,0.2742]
[1756655962718,0.4755,4486.7,4486.6,0.461]
[1756655964809,0.4755,4486.7,4486.6,0.2742]
[1756655965318,0.4755,4486.7,4486.0,3.2078]
[1756655965319,0.4755,4486.1,4486.0,3.6688]
[1756655967320,1.36545143,4486.8,4486.0,3.3946]
[1756655967520,0.4755,4486.3,4486.2,0.461]
[1756655972320,0.193,4486.3,4485.5,3.2078]
[1756655972525,0.4755,4485.7,4485.6,0.461]
[1756655974227,0.193,4485.7,4485.6,0.461]
[1756655974428,0.1114,4485.9,4485.6,0.461]
[1756655974429,0.3939,4485.9,4485.6,0.1868]
[1756655974731,0.3939,4485.9,4485.5,3.2078]
[1756655974732,0.1114,4485.9,4485.8,0.461]
[1756655978434,0.1114,4485.9,4485.8,4.687]
[1756655978636,0.1114,4485.9,4485.8,4.90992]
[1756655978831,0.1114,4485.9,4485.8,4.687]
[1756655979133,0.3014,4486.9,4485.8,4.63572]
[1756655979334,0.4975,4486.9,4486.8,0.4693]
[1756655979634,1.04690035,4486.9,4486.8,0.4693]
[1756655980536,0.4975,4486.9,4486.8,0.4693]
[1756655982437,1.86295143,4486.9,4486.8,0.4693]
[1756655982638,1.86295143,4486.9,4486.8,0.1952]
[1756655982840,1.86295143,4486.9,4486.0,3.2078]
[1756655983137,0.3014,4486.8,4486.1,0.2741]
[1756655988042,0.4975,4486.8,4486.7,0.4693]
[1756655989031,0.7235,4486.8,4486.7,0.4693]
[1756655992340,0.7235,4486.8,4486.0,3.2078]
[1756655992538,0.4975,4486.2,4486.1,0.4693]
[1756655993239,0.1961,4486.2,4486.1,0.4693]
[1756655993544,0.3014,4486.4,4486.3,0.1952]
[1756655993737,0.3014,4486.4,4486.3,0.4693]
[1756655994339,0.4975,4486.4,4486.3,0.4693]
[1756655994639,1.86295143,4486.4,4486.3,0.4693]
[1756655995843,0.4975,4486.4,4486.3,0.4693]
[1756656001449,3.2078,4487.0,4486.0,3.2078]
[1756656001450,0.4975,4486.9,4486.8,0.1952]
[1756656001845,3.2078,4487.5,4487.0,0.2741]
[1756656002148,3.2078,4487.5,4487.4,0.4693]
[1756656002544,3.7053,4487.5,4487.4,0.4693]
[1756656003149,3.7053,4487.5,4486.9,0.2741]
[1756656003351,3.7053,4487.5,4487.4,0.1952]
[1756656003550,3.9313,4487.5,4487.4,0.4693]
[1756656004748,3.6299,4487.5,4486.5,3.2078]
[1756656005147,0.1961,4486.1,4486.0,3.403]
[1756656005349,0.4975,4486.1,4486.0,3.403]
[1756656005749,0.4975,4486.1,4486.0,3.6771]
[1756656007550,0.3014,4486.6,4486.1,0.2741]
[1756656007852,0.4731,4486.6,4486.5,3.6994]
[1756656008042,0.4731,4486.6,4486.3,0.2964]
[1756656008246,0.4609,4486.0,4485.9,3.7013]
[1756656010353,0.226,4486.9,4486.0,0.2964]
[1756656010547,0.277,4486.7,4486.0,0.2964]
[1756656010849,0.226,4486.6,4486.0,0.2964]
[1756656011050,0.4609,4486.1,4486.0,0.4935]
[1756656013051,0.4609,4486.9,4486.8,0.4935]
[1756656013251,0.6869,4486.9,4486.8,0.4935]
[1756656014756,0.277,4486.8,4486.0,0.2964]
[1756656015156,0.4609,4486.8,4486.7,0.1971]
[1756656015352,0.6869,4486.8,4486.7,0.4935]
[1756656016253,0.4609,4486.8,4486.7,0.4935]
[1756656016660,0.226,4486.9,4486.8,0.4935]
[1756656016848,0.4609,4486.9,4486.8,0.4935]
[1756656017053,0.6869,4486.9,4486.8,0.4935]
[1756656017353,3.2078,4487.0,4486.8,0.4935]
[1756656017555,3.4338,4487.0,4486.9,0.4935]
[1756656018754,3.8947,4487.0,4486.9,0.4935]
[1756656024164,0.277,4487.3,4486.9,0.4935]
[1756656024362,3.6687,4487.7,4487.6,0.4935]
[1756656024659,0.6869,4487.7,4487.6,0.4935]
[1756656024860,0.4609,4487.7,4487.6,0.4935]
[1756656025260,0.226,4487.9,4487.6,0.1971]
[1756656025460,0.503,4487.9,4487.8,0.1971]
[1756656025660,0.4609,4487.9,4487.8,0.4935]
[1756656025861,0.277,4488.2,4488.1,0.1971]
[1756656026165,3.2078,4488.3,4488.1,0.4935]
[1756656026359,3.6687,4488.3,4488.2,0.4935]
[1756656027664,3.6687,4488.3,4488.2,0.2964]
[1756656027859,3.6687,4488.3,4487.5,3.2078]
[1756656028060,3.3917,4488.3,4487.6,0.2964]
[1756656028260,0.4609,4488.2,4488.1,0.4935]
[1756656028756,0.4609,4488.2,4488.1,3.7013]
[1756656031864,0.277,4489.0,4488.2,0.2964]
[1756656032061,0.4609,4488.8,4488.7,0.1971]
[1756656032568,0.4609,4488.8,4488.7,0.4935]
[1756656034064,0.1839,4488.8,4488.2,0.2964]
[1756656034266,0.1839,4488.2,4488.1,3.4049]
[1756656034469,0.4609,4488.2,4488.1,3.4049]
[1756656034665,0.4609,4488.2,4488.1,0.1971]
[1756656034871,0.4609,4487.8,4487.7,0.4935]
[1756656035871,0.4609,4487.8,4487.7,0.1971]
[1756656036470,0.4609,4487.8,4487.7,0.4935]
[1756656039268,0.4609,4487.8,4487.6,3.2078]
[1756656039473,0.4729,4487.7,4487.6,3.6768]
[1756656042373,0.4729,4488.2,4488.1,0.469]
[1756656044074,0.2893,4487.2,4486.6,3.2078]
[1756656044274,0.1836,4486.7,4486.1,3.2078]
[1756656044572,0.4729,4486.2,4486.1,3.3922]
[1756656044878,0.4729,4486.2,4486.1,3.6768]
[1756656048677,0.4729,4486.2,4486.1,0.469]
[1756656048881,0.4729,4486.2,4485.5,3.2078]
[1756656049182,0.4729,4485.7,4485.6,0.469]
[1756656049777,0.4729,4486.4,4486.3,0.1844]
[1756656050082,0.4729,4486.4,4486.3,0.469]
[1756656050283,0.1836,4486.4,4485.6,0.2846]
[1756656050483,0.2893,4486.3,4485.6,0.2846]
[1756656050981,0.4729,4486.3,4486.2,0.469]
[1756656051480,0.4729,4485.7,4485.6,0.469]
[1756656055982,0.4729,4485.7,4485.6,0.1844]
[1756656056678,0.1836,4485.2,4485.1,0.469]
[1756656056880,0.4729,4485.2,4485.1,0.469]
[1756656057583,0.4729,4485.2,4484.4,3.4338]
[1756656057776,3.2078,4485.4,4484.5,0.2846]
[1756656057777,0.2893,4485.1,4484.5,0.2846]
[1756656059183,0.4729,4484.6,4484.5,0.469]
[1756656060176,0.4729,4484.6,4484.5,0.2846]
[1756656060372,0.4729,4484.6,4484.5,0.469]
[1756656060688,0.5815,4484.8,4484.7,0.469]
[1756656060981,0.2922,4484.8,4484.7,0.469]
[1756656061287,0.5815,4484.8,4484.7,0.469]
[1756656062683,0.1086,4484.8,4484.7,0.469]
[1756656063186,0.2922,4484.8,4484.7,0.469]
[1756656063485,0.5815,4484.8,4484.7,0.469]
[1756656064188,0.2922,4484.8,4484.7,0.469]
[1756656064590,0.1086,4484.8,4484.7,0.469]
[1756656068792,0.5726,4484.8,4484.7,0.469]
[1756656069789,0.2778,4484.7,4484.6,3.396]
[1756656069994,0.464,4484.7,4484.6,3.692]
[1756656070696,0.464,4484.7,4484.6,0.4842]
[1756656070895,0.464,4484.7,4484.2,0.226]
[1756656071087,0.464,4484.7,4484.3,0.296]
[1756656071288,0.1862,4484.7,4484.1,3.31038354]
[1756656071486,0.464,4484.2,4484.1,3.31038354]
[1756656071685,0.2778,4484.1,4482.6,0.296]
[1756656071890,0.464,4483.4,4483.3,0.4842]
[1756656072693,0.464,4484.0,4483.9,0.4842]
[1756656072895,0.1862,4484.0,4483.9,0.4842]
[1756656073192,0.464,4484.0,4483.9,0.4842]
[1756656074989,0.464,4484.0,4483.9,0.1882]
[1756656075194,0.464,4484.0,4483.3,0.4842]
[1756656075195,0.464,4483.4,4483.3,0.4842]
[1756656075403,0.464,4483.3,4483.2,3.2078]
[1756656075593,0.1862,4483.3,4482.6,3.2078]
[1756656075796,0.464,4482.8,4482.7,0.4842]
[1756656076197,0.1862,4482.8,4482.7,0.4842]
[1756656076499,0.464,4482.8,4482.7,0.4842]
[1756656078500,0.464,4482.8,4482.6,3.2078]
[1756656078701,4.69,4482.7,4481.8,0.296]
[1756656078892,4.69,4482.7,4481.8,0.4842]
[1756656078893,0.464,4481.9,4481.8,0.4842]
[1756656079796,0.1115,4482.1,4481.9,0.296]
[1756656079995,0.1115,4482.1,4482.0,0.4842]
[1756656080805,0.1115,4482.1,4482.0,3.692]
[1756656081397,0.5755,4482.1,4482.0,0.4842]
[1756656082099,0.1115,4482.1,4482.0,0.4842]
[1756656082606,0.2977,4482.1,4482.0,0.4842]
[1756656083903,0.5755,4482.1,4482.0,0.4842]
[1756656084196,0.1115,4482.1,4482.0,0.4842]
[1756656085098,0.1115,4482.1,4482.0,3.692]
[1756656086201,3.2078,4483.1,4482.1,0.296]
[1756656086393,0.3898,4483.6,4483.0,0.4842]
[1756656086703,0.2982,4483.6,4483.5,0.4842]
[1756656087101,0.464,4483.6,4483.5,0.4842]
[1756656087303,0.36685819,4483.6,4483.5,3.692]
[1756656087703,0.36685819,4483.6,4483.5,0.4842]
[1756656087898,0.36685819,4483.6,4483.5,3.692]
[1756656088798,0.18065819,4483.6,4483.5,3.692]
[1756656092902,0.1086,4484.2,4484.1,0.1882]
[1756656093107,0.5048,4484.4,4484.2,0.296]
[1756656093308,0.5048,4484.4,4484.1,3.2078]
[1756656093309,0.691,4484.4,4484.3,0.1882]
[1756656093609,3.2078,4485.1,4485.0,0.4842]
[1756656093610,3.8988,4485.1,4485.0,0.4842]
[1756656093803,0.2778,4485.0,4484.2,0.296]
[1756656094407,0.5726,4484.9,4484.8,0.4842]
[1756656095205,0.464,4484.9,4484.8,0.4842]
[1756656104322,0.1086,4485.5,4484.8,3.396]
[1756656104624,0.3015,4485.1,4485.0,0.477]
[1756656105016,0.227,4485.3,4484.8,3.2078]
[1756656105311,0.4962,4485.1,4485.0,0.477]
[1756656107221,0.4962,4485.1,4485.0,0.1959]
[1756656107421,0.4962,4485.1,4485.0,0.477]
[1756656107821,0.4962,4485.1,4484.2,3.2078]
[1756656107822,0.3015,4485.0,4484.3,0.2811]